fUSD/lending_fUSD_20241107
["ID","MTS","AMOUNT","RATE_DAILY","PERIOD"]
[341579980,1731006676237,-500.0,0.00029037,2]
[341579981,1731006676247,-512.23,0.00029037,2]
[341579982,1731006676256,-1219.65,0.00029037,2]
[341579983,1731006676265,-514.4,0.00029037,2]
[341579984,1731006676274,-500.0,0.00029037,2]
[341579985,1731006676283,-500.0,0.00029037,2]
[341579986,1731006676294,-669.12,0.00029037,2]
[341579987,1731006676303,-518.66,0.00029037,2]
[341579988,1731006676312,-500.0,0.00029037,2]
[341579989,1731006676321,-500.0,0.00029037,2]
[341579990,1731006676330,-500.0,0.00029037,2]
[341579991,1731006676340,-500.0,0.00029037,2]
[341579992,1731006676349,-709.17,0.00029037,2]
[341579993,1731006676358,-739.59,0.00029037,2]
[341579994,1731006676367,-500.0,0.00029037,2]
[341579995,1731006676376,-1551.6,0.00029037,2]
[341579996,1731006676385,-500.0,0.00029037,2]
[341579997,1731006676394,-151.0,0.00029037,7]
[341579998,1731006676404,-500.0,0.00029037,2]
[341579999,1731006676413,-582.77,0.00029037,2]
[341580000,1731006676422,-554.98,0.00029037,2]
[341580001,1731006676433,-500.0,0.00029037,2]
[341580002,1731006676442,-500.0,0.00029037,2]
[341580003,1731006676450,-500.0,0.00029037,2]
[341580004,1731006676460,-500.0,0.00029037,2]
[341580005,1731006676470,-599.88,0.00029037,2]
[341580006,1731006676479,-757.15,0.00029037,2]
[341580007,1731006676488,-1976.56,0.00029037,2]
[341580008,1731006676497,-529.75,0.00029037,2]
[341580009,1731006676507,-500.0,0.00029037,2]
[341580010,1731006676516,-1149.01,0.00029037,2]
[341580011,1731006676525,-500.0,0.00029037,2]
[341580012,1731006676535,-1220.16,0.00029037,2]
[341580013,1731006676547,-546.07,0.00029037,2]
[341580014,1731006676557,-500.0,0.00029037,2]
[341580015,1731006676568,-506.94,0.00029037,2]
[341580016,1731006676578,-500.0,0.00029037,2]
[341580017,1731006676588,-2979.51,0.00029037,2]
[341580018,1731006676597,-500.0,0.00029037,2]
[341580019,1731006676607,-151.0,0.00029037,7]
[341580020,1731006676617,-500.0,0.00029037,2]
[341580021,1731006676627,-235.977363,0.00029037,7]
[341580022,1731006676636,-519.14,0.00029037,2]
[341580023,1731006676648,-2067.88,0.00029037,2]
[341580024,1731006676658,-235.977363,0.00029037,7]
[341580025,1731006676667,-500.0,0.00029037,2]
[341580026,1731006676678,-878.52,0.00029037,2]
[341580027,1731006676687,-1422.44,0.00029037,2]
[341580028,1731006676697,-500.0,0.00029037,2]
[341580029,1731006676706,-1259.26,0.00029037,2]
[341580030,1731006676716,-2981.49,0.00029037,2]
[341580031,1731006676725,-1006.79,0.00029037,2]
[341580032,1731006676735,-500.0,0.00029037,2]
[341580033,1731006676744,-500.0,0.00029037,2]
[341580034,1731006676753,-520.27827656,0.00029037,2]
[341580035,1731006676765,-836.72,0.00029037,2]
[341580036,1731006676778,-2772.23,0.00029037,2]
[341580037,1731006676787,-500.0,0.00029037,2]
[341580038,1731006676801,-500.0,0.00029037,2]
[341580039,1731006676810,-500.0,0.00029037,2]
[341580040,1731006676820,-2687.0,0.00029037,2]
[341580041,1731006676830,-500.0,0.00029037,2]
[341580042,1731006676839,-918.74,0.00029037,2]
[341580043,1731006676849,-500.0,0.00029037,2]
[341580044,1731006676858,-1199.17,0.00029037,2]
[341580045,1731006676867,-151.0,0.00029037,7]
[341580046,1731006676877,-677.72,0.00029037,2]
[341580047,1731006676885,-1121.97,0.00029037,2]
[341580048,1731006676894,-500.0,0.00029037,2]
[341580049,1731006676903,-500.0,0.00029037,2]
[341580050,1731006676913,-505.15112996,0.00029037,2]
[341580051,1731006676922,-500.0,0.00029037,2]
[341580052,1731006676931,-18675.57,0.00029037,2]
[341580053,1731006676941,-151.0,0.00029037,7]
[341580054,1731006676950,-1269.62,0.00029037,2]
[341580055,1731006676960,-963.961596,0.00029037,7]
[341580056,1731006676969,-500.0,0.00029037,2]
[341580057,1731006676978,-500.0,0.00029037,2]
[341580058,1731006676988,-500.0,0.00029037,2]
[341580059,1731006676996,-963.961596,0.00029037,7]
[341580060,1731006677006,-1122.6,0.00029037,2]
[341580061,1731006677015,-1283.31,0.00029037,2]
[341580062,1731006677024,-500.0,0.00029037,2]
[341580063,1731006677034,-151.0,0.00029037,7]
[341580064,1731006677046,-165.51486,0.00029037,7]
[341580065,1731006677056,-177.45740849,0.00029037,2]
[341580066,1731006677065,-502.35,0.00029037,2]
[341580067,1731006677073,-1156.09,0.00029037,2]
[341580068,1731006677082,-165.51486,0.00029037,7]
[341580069,1731006677091,-1076.96,0.00029037,2]
[341580070,1731006677101,-1567.12,0.00029037,2]
[341580071,1731006677110,-151.0,0.00029037,7]
[341580072,1731006677119,-500.0,0.00029037,2]
[341580073,1731006677128,-1513.89,0.00029037,2]
[341580074,1731006677138,-500.0,0.00029037,2]
[341580075,1731006677147,-687.79,0.00029037,2]
[341580076,1731006677157,-3790.47,0.00029037,2]
[341580077,1731006677166,-2000.0,0.00029037,120]
[341580078,1731006677175,-500.0,0.00029037,2]
[341580079,1731006677184,-3068.86,0.00029037,2]
[341580080,1731006677193,-500.0,0.00029037,2]
[341580081,1731006677203,-500.0,0.00029037,2]
[341580082,1731006677212,-500.0,0.00029037,2]
[341580083,1731006677222,-500.0,0.00029037,2]
[341580084,1731006677231,-500.0,0.00029037,2]
[341580085,1731006677241,-1210.5,0.00029037,2]
[341580086,1731006677250,-558.1111713,0.00029037,2]
[341580087,1731006677260,-615.47,0.00029037,2]
[341580088,1731006677269,-4111.16,0.00029037,2]
[341580089,1731006677279,-1162.36,0.00029037,2]
[341580090,1731006677288,-3452.52,0.00029037,2]
[341580091,1731006677300,-1230.01,0.00029037,2]
[341580092,1731006677309,-1402.95,0.00029037,2]
[341580093,1731006677318,-1460.26,0.00029037,2]
[341580094,1731006677328,-500.0,0.00029037,2]
[341580095,1731006677337,-500.0,0.00029037,2]
[341580096,1731006677346,-500.0,0.00029037,2]
[341580097,1731006677356,-903.76,0.00029037,2]
[341580098,1731006677365,-500.0,0.00029037,2]
[341580099,1731006677375,-1015.39,0.00029037,2]
[341580100,1731006677384,-923.7,0.00029037,2]
[341580101,1731006677393,-500.0,0.00029037,2]
[341580102,1731006677403,-1210.01,0.00029037,2]
[341580103,1731006677412,-3186.71,0.00029037,2]
[341580104,1731006677422,-500.0,0.00029037,2]
[341580105,1731006677431,-1536.6,0.00029037,2]
[341580106,1731006677441,-500.0,0.00029037,2]
[341580107,1731006677450,-2249.38,0.00029037,2]
[341580108,1731006677460,-1067.35,0.00029037,2]
[341580109,1731006677469,-4750.07,0.00029037,2]
[341580110,1731006677478,-1963.6,0.00029037,2]
[341580111,1731006677488,-2037.68,0.00029037,2]
[341580112,1731006677498,-500.0,0.00029037,2]
[341580113,1731006677508,-151.0,0.00029037,7]
[341580114,1731006677518,-500.0,0.00029037,2]
[341580115,1731006677527,-1882.41,0.00029037,2]
[341580116,1731006677537,-1701.87,0.00029037,2]
[341580117,1731006677549,-500.0,0.00029037,2]
[341580118,1731006677558,-1444.46,0.00029037,2]
[341580119,1731006677571,-151.0,0.00029037,7]
[341580120,1731006677581,-1608.5,0.00029037,2]
[341580121,1731006677591,-685.14,0.00029037,2]
[341580122,1731006677600,-2610.95,0.00029037,2]
[341580123,1731006677610,-2745.64,0.00029037,2]
[341580124,1731006677621,-500.0,0.00029037,2]
[341580125,1731006677631,-500.0,0.00029037,2]
[341580126,1731006677641,-868.61,0.00029037,2]
[341580127,1731006677651,-500.0,0.00029037,2]
[341580128,1731006677660,-7462.48,0.00029037,2]
[341580129,1731006677669,-2696.67,0.00029037,2]
[341580130,1731006677679,-11398.04,0.00029037,2]
[341580131,1731006677688,-908.04,0.00029037,2]
[341580132,1731006677697,-879.93,0.00029037,2]
[341580133,1731006677707,-1140.22,0.00029037,2]
[341580134,1731006677716,-151.0,0.00029037,7]
[341580135,1731006677726,-3206.38,0.00029037,2]
[341580136,1731006677736,-500.0,0.00029037,2]
[341580137,1731006677746,-500.0,0.00029037,2]
[341580138,1731006677756,-723.66,0.00029038,2]
[341580139,1731006677766,-500.0,0.00029038,2]
[341580140,1731006677775,-1011.26,0.00029038,2]
[341580141,1731006677784,-447.93265464,0.00029038,2]
[341580142,1731006677796,-777.16,0.00029038,2]
[341580143,1731006677807,-500.0,0.00029038,2]
[341580144,1731006677816,-500.0,0.00029038,2]
[341580145,1731006677826,-500.0,0.00029038,2]
[341580146,1731006677835,-500.0,0.00029038,2]
[341580147,1731006677844,-322.96898769,0.00029038,2]
[341580148,1731006677853,-500.0,0.00029038,2]
[341580149,1731006677863,-500.0,0.00029038,2]
[341580150,1731006677872,-500.0,0.00029038,2]
[341580151,1731006677881,-500.0,0.00029038,2]
[341580152,1731006677890,-500.0,0.00029038,2]
[341580153,1731006677899,-500.0,0.00029038,2]
[341580154,1731006677908,-500.0,0.00029038,2]
[341580155,1731006677917,-500.0,0.00029038,2]
[341580156,1731006677927,-500.0,0.00029038,2]
[341580157,1731006677936,-500.0,0.00029038,2]
[341580158,1731006677945,-500.0,0.00029038,2]
[341580159,1731006677955,-500.0,0.00029038,2]
[341580160,1731006677964,-500.0,0.00029038,2]
[341580161,1731006677973,-500.0,0.00029038,2]
[341580162,1731006677982,-553.71,0.00029038,2]
[341580163,1731006677992,-684.89,0.00029038,2]
[341580164,1731006678001,-506.13,0.00029038,2]
[341580165,1731006678010,-500.0,0.00029038,2]
[341580166,1731006678019,-500.0,0.00029038,2]
[341580167,1731006678029,-313.20629889,0.00029038,2]
[341580168,1731006678038,-500.0,0.00029038,2]
[341580169,1731006678050,-500.0,0.00029038,2]
[341580170,1731006678059,-500.0,0.00029038,2]
[341580171,1731006678068,-612.99695094,0.00029038,2]
[341580172,1731006678078,-500.0,0.00029038,2]
[341580173,1731006678088,-558.2,0.00029038,2]
[341580174,1731006678097,-500.0,0.00029038,2]
[341580175,1731006678107,-500.0,0.00029038,2]
[341580176,1731006678116,-500.0,0.00029038,2]
[341580177,1731006678125,-508.32,0.00029038,2]
[341580178,1731006678135,-500.0,0.00029038,2]
[341580179,1731006678144,-544.1,0.00029038,2]
[341580180,1731006678152,-522.86,0.00029038,2]
[341580181,1731006678162,-641.15871111,0.00029038,2]
[341580182,1731006678171,-500.0,0.00029038,2]
[341580183,1731006678181,-500.0,0.00029038,2]
[341580184,1731006678190,-500.0,0.00029038,2]
[341580185,1731006678200,-500.0,0.00029038,2]
[341580186,1731006678209,-1074.3,0.00029038,10]
[341580187,1731006678219,-841.18,0.00029038,2]
[341580188,1731006678229,-500.0,0.00029038,2]
[341580189,1731006678239,-500.0,0.00029038,2]
[341580190,1731006678248,-500.0,0.00029038,2]
[341580191,1731006678258,-500.0,0.00029038,2]
[341580192,1731006678267,-500.0,0.00029038,2]
[341580193,1731006678276,-854.85,0.00029038,2]
[341580194,1731006678286,-500.0,0.00029038,2]
[341580195,1731006678296,-266.747638,0.00029038,7]
[341580196,1731006678305,-500.0,0.00029038,2]
[341580197,1731006678314,-266.747638,0.00029038,7]
[341580198,1731006678323,-600.11456793,0.00029038,2]
[341580199,1731006678332,-500.0,0.00029038,2]
[341580200,1731006678341,-500.0,0.00029038,2]
[341580201,1731006678350,-1405.72,0.00029038,2]
[341580202,1731006678359,-1010.28,0.00029038,2]
[341580203,1731006678368,-501.46844748,0.00029038,2]
[341580204,1731006678378,-500.0,0.00029038,2]
[341580205,1731006678387,-1474.85,0.00029038,2]
[341580206,1731006678396,-588.42,0.00029038,2]
[341580207,1731006678405,-500.0,0.00029038,2]
[341580208,1731006678415,-500.0,0.00029038,2]
[341580209,1731006678424,-500.0,0.00029038,2]
[341580210,1731006678433,-626.28373853,0.00029038,2]
[341580211,1731006678442,-500.0,0.00029038,2]
[341580212,1731006678452,-500.0,0.00029038,2]
[341580213,1731006678462,-1559.87,0.00029038,2]
[341580214,1731006678471,-708.79,0.00029038,2]
[341580215,1731006678480,-1346.76,0.00029038,2]
[341580216,1731006678490,-1075.1,0.00029038,2]
[341580217,1731006678499,-500.0,0.00029038,2]
[341580218,1731006678508,-500.0,0.00029038,2]
[341580219,1731006678517,-690.67,0.00029038,2]
[341580220,1731006678527,-772.82,0.00029038,2]
[341580221,1731006678536,-500.0,0.00029038,2]
[341580222,1731006678548,-500.0,0.00029038,2]
[341580223,1731006678558,-500.0,0.00029038,2]
[341580224,1731006678570,-815.4,0.00029038,2]
[341580225,1731006678579,-671.17,0.00029038,2]
[341580226,1731006678702,-539.78,0.00029038,2]
[341580227,1731006678726,-553.21,0.00029038,2]
[341580228,1731006678736,-151.0,0.00029038,7]
[341580229,1731006678746,-601.53,0.00029038,2]
[341580230,1731006678755,-151.0,0.00029038,7]
[341580231,1731006678765,-500.0,0.00029038,2]
[341580232,1731006678775,-500.0,0.00029038,2]
[341580233,1731006678784,-500.0,0.00029038,2]
[341580234,1731006678796,-778.48,0.00029038,2]
[341580235,1731006678806,-500.0,0.00029038,2]
[341580236,1731006678816,-297.60099162,0.00029038,2]
[341580237,1731006678826,-500.0,0.00029038,2]
[341580238,1731006678836,-986.18,0.00029038,2]
[341580239,1731006678846,-925.38,0.00029038,2]
[341580240,1731006678855,-500.0,0.00029038,2]
[341580241,1731006678865,-849.38,0.00029038,2]
[341580242,1731006678875,-884.51,0.00029038,2]
[341580243,1731006678885,-1452.1,0.00029038,2]
[341580244,1731006678895,-500.0,0.00029038,2]
[341580245,1731006678904,-1021.71,0.00029038,2]
[341580246,1731006678914,-795.12,0.00029038,2]
[341580247,1731006678923,-500.0,0.00029038,2]
[341580248,1731006678933,-500.0,0.00029038,2]
[341580249,1731006678944,-946.45,0.00029038,2]
[341580250,1731006678954,-559.8,0.00029038,2]
[341580251,1731006678964,-500.0,0.00029038,2]
[341580252,1731006678974,-500.0,0.00029038,2]
[341580253,1731006678984,-500.0,0.00029038,2]
[341580254,1731006678994,-500.0,0.00029038,2]
[341580255,1731006679004,-567.63,0.00029038,2]
[341580256,1731006679014,-861.73,0.00029038,2]
[341580257,1731006679024,-500.0,0.00029038,2]
[341580258,1731006679034,-500.0,0.00029038,2]
[341580259,1731006679045,-500.0,0.00029038,2]
[341580260,1731006679055,-1541.33,0.00029038,2]
[341580261,1731006679064,-1203.52,0.00029038,2]
[341580262,1731006679075,-151.0,0.00029038,7]
[341580263,1731006679084,-356.035373,0.00029038,7]
[341580264,1731006679094,-893.94,0.00029038,2]
[341580265,1731006679104,-500.0,0.00029038,2]
[341580266,1731006679114,-356.035373,0.00029038,7]
[341580267,1731006679124,-500.0,0.00029038,2]
[341580268,1731006679134,-500.0,0.00029038,2]
[341580269,1731006679144,-564.17,0.00029038,2]
[341580270,1731006679155,-875.63,0.00029038,2]
[341580271,1731006679164,-396.58750583,0.00029038,2]
[341580272,1731006679174,-1115.47,0.00029038,2]
[341580273,1731006679183,-500.0,0.00029038,2]
[341580274,1731006679193,-625.8,0.00029038,2]
[341580275,1731006679202,-1251.93,0.00029038,2]
[341580276,1731006679212,-170.801987,0.00029038,7]
[341580277,1731006679221,-954.67,0.00029038,2]
[341580278,1731006679231,-170.801987,0.00029038,7]
[341580279,1731006679241,-742.87,0.00029038,2]
[341580280,1731006679250,-500.0,0.00029038,2]
[341580281,1731006679259,-1179.63,0.00029038,2]
[341580282,1731006679269,-1413.66,0.00029038,2]
[341580283,1731006679278,-699.24,0.00029038,2]
[341580284,1731006679288,-925.92,0.00029038,2]
[341580285,1731006679299,-576.78,0.00029038,2]
[341580286,1731006679309,-1328.46,0.00029038,2]
[341580287,1731006679318,-642.75,0.00029038,2]
[341580288,1731006679329,-1064.03,0.00029038,2]
[341580289,1731006679338,-263.969992,0.00029038,7]
[341580290,1731006679348,-500.0,0.00029038,2]
[341580291,1731006679357,-504.18,0.00029038,2]
[341580292,1731006679367,-816.77,0.00029038,2]
[341580293,1731006679377,-835.37,0.00029038,2]
[341580294,1731006679387,-500.0,0.00029038,2]
[341580295,1731006679397,-1231.86,0.00029038,2]
[341580296,1731006679406,-1206.38,0.00029038,2]
[341580297,1731006679417,-833.23,0.00029038,2]
[341580298,1731006679427,-1475.12,0.00029038,2]
[341580299,1731006679437,-972.6,0.00029038,2]
[341580300,1731006679447,-500.0,0.00029038,2]
[341580301,1731006679457,-678.17,0.00029038,2]
[341580302,1731006679467,-500.0,0.00029038,2]
[341580303,1731006679477,-500.0,0.00029038,2]
[341580304,1731006679486,-2570.94,0.00029038,2]
[341580305,1731006679496,-1229.48,0.00029038,2]
[341580306,1731006679507,-896.88,0.00029038,2]
[341580307,1731006679517,-500.0,0.00029038,2]
[341580308,1731006679527,-961.1,0.00029038,2]
[341580309,1731006679538,-500.0,0.00029038,2]
[341580310,1731006679552,-1463.27,0.00029038,2]
[341580311,1731006679562,-496.246228,0.00029038,7]
[341580312,1731006679581,-3143.16,0.00029038,2]
[341580313,1731006679591,-500.0,0.00029038,2]
[341580314,1731006679601,-496.246228,0.00029038,7]
[341580315,1731006679611,-500.0,0.00029038,2]
[341580316,1731006679621,-726.47,0.00029038,2]
[341580317,1731006679631,-500.0,0.00029038,2]
[341580318,1731006679642,-500.0,0.00029038,2]
[341580319,1731006679652,-4690.82,0.00029038,2]
[341580320,1731006679663,-550.48,0.00029038,2]
[341580321,1731006679673,-500.0,0.00029038,2]
[341580322,1731006679683,-190.612709,0.00029038,7]
[341580323,1731006679693,-2121.04,0.00029038,2]
[341580324,1731006679702,-500.0,0.00029038,2]
[341580325,1731006679713,-190.612709,0.00029038,7]
[341580326,1731006679725,-2520.06,0.00029038,2]
[341580327,1731006679735,-4252.172922,0.00029038,7]
[341580328,1731006679745,-500.0,0.00029038,2]
[341580329,1731006679755,-500.0,0.00029038,2]
[341580330,1731006679767,-1085.49,0.00029038,2]
[341580331,1731006679777,-880.83,0.00029038,2]
[341580332,1731006679787,-408.391294,0.00029038,7]
[341580333,1731006679802,-500.0,0.00029038,2]
[341580334,1731006679812,-500.0,0.00029038,2]
[341580335,1731006679823,-408.391294,0.00029038,7]
[341580336,1731006679833,-151.0,0.00029038,7]
[341580337,1731006679842,-500.0,0.00029038,2]
[341580338,1731006679851,-943.13,0.00029038,2]
[341580339,1731006679860,-500.0,0.00029038,2]
[341580340,1731006679870,-960.56,0.00029038,2]
[341580341,1731006679879,-775.37,0.00029038,2]
[341580342,1731006679889,-500.0,0.00029038,2]
[341580343,1731006679899,-1421.51,0.00029038,2]
[341580344,1731006679908,-500.0,0.00029038,2]
[341580345,1731006679918,-500.0,0.00029038,2]
[341580346,1731006679927,-500.0,0.00029038,2]
[341580347,1731006679937,-151.0,0.00029038,7]
[341580348,1731006679946,-500.0,0.00029038,2]
[341580349,1731006679960,-1153.57,0.00029038,2]
[341580350,1731006679969,-151.0,0.00029038,7]
[341580351,1731006679979,-217.6650122,0.00029038,2]
[341580352,1731006679989,-500.0,0.00029038,2]
[341580353,1731006679998,-858.2509,0.00029038,7]
[341580354,1731006680008,-604.83,0.00029038,2]
[341580355,1731006680018,-569.26,0.00029038,2]
[341580356,1731006680027,-500.0,0.00029038,2]
[341580357,1731006680037,-151.0,0.00029038,7]
[341580358,1731006680049,-858.2509,0.00029038,7]
[341580359,1731006680059,-500.0,0.00029038,2]
[341580360,1731006680068,-500.0,0.00029038,2]
[341580361,1731006680078,-500.0,0.00029038,2]
[341580362,1731006680087,-546.2482303,0.00029038,2]
[341580363,1731006680097,-645.83,0.00029038,2]
[341580364,1731006680107,-500.0,0.00029038,2]
[341580365,1731006680118,-779.11,0.00029038,2]
[341580366,1731006680128,-500.0,0.00029038,2]
[341580367,1731006680137,-599.12,0.00029038,2]
[341580368,1731006680147,-500.0,0.00029038,2]
[341580369,1731006680157,-500.0,0.00029038,2]
[341580370,1731006680166,-1042.79,0.00029038,2]
[341580371,1731006680176,-177.626265,0.00029038,7]
[341580372,1731006680186,-177.626265,0.00029038,7]
[341580373,1731006680196,-500.0,0.00029038,2]
[341580374,1731006680206,-815.39,0.00029038,2]
[341580375,1731006680216,-151.90198825,0.00029038,2]
[341580376,1731006680226,-500.0,0.00029038,2]
[341580377,1731006680236,-540.00431,0.00029038,7]
[341580378,1731006680246,-1276.42,0.00029038,2]
[341580379,1731006680256,-1160.45,0.00029038,2]
[341580380,1731006680266,-500.0,0.00029038,2]
[341580381,1731006680276,-500.0,0.00029038,2]
[341580382,1731006680287,-540.00431,0.00029038,7]
[341580383,1731006680300,-991.95,0.00029038,2]
[341580384,1731006680310,-500.0,0.00029038,2]
[341580385,1731006680322,-500.0,0.00029038,2]
[341580386,1731006680332,-503.39115358,0.00029038,2]
[341580387,1731006680341,-500.0,0.00029038,2]
[341580388,1731006680351,-2096.29,0.00029038,2]
[341580389,1731006680361,-1112.02,0.00029038,2]
[341580390,1731006680371,-546.77,0.00029038,2]
[341580391,1731006680381,-507.01,0.00029038,2]
[341580392,1731006680390,-500.0,0.00029038,2]
[341580393,1731006680399,-1299.27,0.00029038,2]
[341580394,1731006680409,-1440.6,0.00029038,2]
[341580395,1731006680419,-634.36,0.00029038,2]
[341580396,1731006680429,-1237.47,0.00029038,2]
[341580397,1731006680438,-500.0,0.00029038,2]
[341580398,1731006680448,-1400.48,0.00029038,2]
[341580399,1731006680457,-880.63,0.00029038,2]
[341580400,1731006680467,-1189.25,0.00029038,2]
[341580401,1731006680476,-500.0,0.00029038,2]
[341580402,1731006680486,-500.0,0.00029038,2]
[341580403,1731006680495,-500.0,0.00029038,2]
[341580404,1731006680505,-740.28,0.00029038,2]
[341580405,1731006680516,-500.0,0.00029038,2]
[341580406,1731006680525,-500.0,0.00029038,2]
[341580407,1731006680535,-500.0,0.00029038,2]
[341580408,1731006680549,-860.23,0.00029038,2]
[341580409,1731006680559,-538.507583,0.00029038,7]
[341580410,1731006680573,-538.507583,0.00029038,7]
[341580411,1731006680582,-500.0,0.00029038,2]
[341580412,1731006680593,-500.0,0.00029038,2]
[341580413,1731006680603,-733.25,0.00029038,2]
[341580414,1731006680614,-2079.61,0.00029038,2]
[341580415,1731006680625,-500.0,0.00029038,2]
[341580416,1731006680634,-500.0,0.00029038,2]
[341580417,1731006680647,-1402.17,0.00029038,2]
[341580418,1731006680656,-919.14,0.00029038,2]
[341580419,1731006680666,-564.55,0.00029038,2]
[341580420,1731006680675,-500.0,0.00029038,2]
[341580421,1731006680684,-500.0,0.00029038,2]
[341580422,1731006680694,-593.88832922,0.00029038,2]
[341580423,1731006680703,-500.0,0.00029038,2]
[341580424,1731006680713,-500.0,0.00029038,2]
[341580425,1731006680724,-500.0,0.00029038,2]
[341580426,1731006680735,-1687.74,0.00029038,2]
[341580427,1731006680745,-500.0,0.00029038,2]
[341580428,1731006680755,-869.33,0.00029038,2]
[341580429,1731006680765,-6466.8,0.00029038,2]
[341580430,1731006680775,-500.0,0.00029038,2]
[341580431,1731006680784,-500.0,0.00029038,2]
[341580432,1731006680797,-500.0,0.00029038,2]
[341580433,1731006680807,-775.1,0.00029038,2]
[341580434,1731006680817,-1751.76,0.00029038,2]
[341580435,1731006680826,-805.76,0.00029038,2]
[341580436,1731006680835,-717.44,0.00029038,2]
[341580437,1731006680845,-500.0,0.00029038,2]
[341580438,1731006680855,-719.7,0.00029038,2]
[341580439,1731006680865,-151.0,0.00029039,7]
[341580440,1731006680874,-151.0,0.00029039,7]
[341580441,1731006680882,-232.356287,0.00029039,7]
[341580442,1731006680892,-232.356287,0.00029039,7]
[341580443,1731006680901,-634.28,0.00029039,2]
[341580444,1731006681229,-500.0,0.00029039,2]
[341580445,1731006681239,-500.0,0.00029039,2]
[341580446,1731006681249,-619.42,0.00029039,2]
[341580447,1731006681258,-529.47207395,0.00029039,2]
[341580448,1731006681267,-500.0,0.00029039,2]
[341580449,1731006681276,-500.0,0.00029039,2]
[341580450,1731006681285,-500.0,0.00029039,2]
[341580451,1731006681298,-500.0,0.00029039,2]
[341580452,1731006681307,-500.0,0.00029039,2]
[341580453,1731006681316,-198.473013,0.00029039,7]
[341580454,1731006681326,-198.473013,0.00029039,7]
[341580455,1731006681335,-500.0,0.00029039,2]
[341580456,1731006681344,-151.0,0.00029039,7]
[341580457,1731006681353,-500.0,0.00029039,2]
[341580458,1731006681363,-500.0,0.00029039,2]
[341580459,1731006681373,-151.0,0.00029039,7]
[341580460,1731006681383,-666.11,0.00029039,2]
[341580461,1731006681392,-500.0,0.00029039,2]
[341580462,1731006681401,-500.0,0.00029039,2]
[341580463,1731006681411,-500.0,0.00029039,2]
[341580464,1731006681420,-500.0,0.00029039,2]
[341580465,1731006681430,-500.0,0.00029039,2]
[341580466,1731006681439,-500.0,0.00029039,2]
[341580467,1731006681449,-500.0,0.00029039,2]
[341580468,1731006681458,-500.0,0.00029039,2]
[341580469,1731006681467,-500.0,0.00029039,2]
[341580470,1731006681477,-684.31,0.00029039,2]
[341580471,1731006681486,-683.37,0.00029039,2]
[341580472,1731006681495,-1140.84,0.00029039,2]
[341580473,1731006681505,-500.0,0.00029039,2]
[341580474,1731006681515,-500.0,0.00029039,2]
[341580475,1731006681525,-500.0,0.00029039,2]
[341580476,1731006681535,-500.0,0.00029039,2]
[341580477,1731006681550,-500.0,0.00029039,2]
[341580478,1731006681560,-594.1,0.00029039,2]
[341580479,1731006681570,-774.5,0.00029039,2]